bitfinex/quotes_BTCUSD_20240906
["timestamp","ask_amount","ask_price","bid_price","bid_amount"]
[1725637772151,1.287426,54372.0,54371.0,0.023]
[1725637772617,0.91959,54372.0,54371.0,0.023]
[1725637773607,1.287426,54372.0,54371.0,0.023]
[1725637773844,1.287426,54372.0,54371.0,0.025]
[1725637774084,1.287426,54372.0,54371.0,0.023]
[1725637774318,1.3162483,54372.0,54371.0,0.023]
[1725637774574,1.387426,54372.0,54371.0,0.023]
[1725637775258,1.388242,54372.0,54371.0,0.023]
[1725637776443,1.41359033,54372.0,54371.0,0.023]
[1725637776904,1.78142633,54372.0,54371.0,0.023]
[1725637777137,1.41359033,54372.0,54371.0,0.023]
[1725637777355,1.41359033,54372.0,54369.0,0.073746]
[1725637777356,1.287471,54370.0,54369.0,0.073746]
[1725637777591,1.287471,54370.0,54369.0,0.096746]
[1725637777592,1.387471,54370.0,54369.0,0.096746]
[1725637778375,1.75532,54370.0,54369.0,0.096746]
[1725637778616,1.75532,54370.0,54357.0,0.02]
[1725637778617,0.919827,54358.0,54357.0,0.1815]
[1725637779318,0.919827,54358.0,54357.0,0.255257]
[1725637779781,1.287758,54358.0,54357.0,0.255257]
[1725637780006,1.287758,54358.0,54357.0,0.073757]
[1725637780228,0.551946,54353.0,54352.0,0.43234734]
[1725637780709,0.91991,54353.0,54352.0,0.50611134]
[1725637780962,1.287874,54353.0,54352.0,0.073764]
[1725637781187,1.01991,54353.0,54352.0,0.073764]
[1725637781644,1.01991,54353.0,54352.0,0.31121134]
[1725637781896,0.467964,54353.0,54352.0,0.31321134]
[1725637782140,1.01991,54353.0,54352.0,0.31121134]
[1725637782364,1.01991,54353.0,54352.0,0.33421134]
[1725637782585,1.387874,54353.0,54352.0,0.33421134]
[1725637782856,1.387874,54353.0,54352.0,0.31121134]
[1725637783071,1.387874,54353.0,54352.0,0.23744734]
[1725637783320,1.01991,54353.0,54352.0,0.23744734]
[1725637784281,0.651946,54353.0,54352.0,0.23744734]
[1725637784504,0.651946,54353.0,54352.0,0.26044734]
[1725637784723,1.01991,54353.0,54352.0,0.26044734]
[1725637785223,0.1,54353.0,54352.0,0.26044734]
[1725637785458,0.283982,54353.0,54352.0,0.26044734]
[1725637785719,1.01991,54353.0,54352.0,0.26044734]
[1725637786426,0.651946,54353.0,54352.0,0.26044734]
[1725637786650,1.04874248,54353.0,54352.0,0.26044734]
[1725637786889,1.07410125,54353.0,54352.0,0.26044734]
[1725637787118,0.02883248,54353.0,54352.0,0.26044734]
[1725637787335,0.21281448,54353.0,54352.0,0.26044734]
[1725637787555,0.02883248,54353.0,54352.0,0.26244734]
[1725637787809,0.183982,54353.0,54352.0,0.26244734]
[1725637788057,0.183982,54353.0,54352.0,0.85044734]
[1725637788058,0.02883171,54353.0,54352.0,0.85044734]
[1725637788284,0.02883171,54353.0,54352.0,0.84244734]
[1725637788527,0.367943,54357.0,54353.0,0.012]
[1725637788750,0.57702596,54357.0,54356.0,0.23744734]
[1725637788975,0.57702596,54357.0,54356.0,0.26044734]
[1725637789230,0.94496896,54357.0,54356.0,0.26044734]
[1725637789446,0.57702596,54357.0,54356.0,0.26044734]
[1725637789914,0.94496896,54357.0,54356.0,0.26044734]
[1725637790134,1.72891196,54357.0,54356.0,0.26044734]
[1725637790361,1.82891196,54357.0,54356.0,0.26044734]
[1725637790664,1.41291196,54357.0,54356.0,0.26044734]
[1725637790881,1.04496896,54357.0,54356.0,0.26044734]
[1725637791146,0.367889,54365.0,54358.0,0.1916]
[1725637791377,0.000816,54372.0,54363.0,0.002]
[1725637791640,0.183941,54365.0,54364.0,0.00367802]
[1725637791886,0.551824,54365.0,54364.0,0.04030157]
[1725637792147,0.551824,54365.0,54364.0,0.025]
[1725637792397,0.919707,54365.0,54364.0,0.25474332]
[1725637792636,0.919707,54365.0,54364.0,0.26044734]
[1725637792886,0.000816,54372.0,54364.0,0.26044734]
[1725637793125,1.288242,54372.0,54371.0,0.23744734]
[1725637793352,0.920406,54372.0,54371.0,0.42584734]
[1725637793575,0.65257,54372.0,54371.0,0.44884734]
[1725637793820,1.020406,54372.0,54371.0,0.44884734]
[1725637794031,1.020406,54372.0,54371.0,0.52794507]
[1725637794251,0.65257,54372.0,54371.0,0.52794507]
[1725637794705,1.020406,54372.0,54371.0,0.023]
[1725637794946,1.7880206,54372.0,54371.0,0.023]
[1725637795166,1.28752,54368.0,54367.0,0.33954507]
[1725637795388,0.919657,54368.0,54367.0,0.33954507]
[1725637795860,0.367846,54371.0,54367.0,0.33954507]
[1725637796122,0.183931,54368.0,54367.0,0.025]
[1725637796347,0.0005946,54372.0,54371.0,0.012]
[1725637796559,0.0005946,54372.0,54371.0,0.01567731]
[1725637796799,0.0005946,54372.0,54371.0,0.035]
[1725637797562,0.00082,54377.0,54376.0,0.01]
[1725637797805,0.00082,54377.0,54376.0,0.93652213]
[1725637798028,0.184721,54377.0,54376.0,0.95013811]
[1725637798278,0.552523,54377.0,54376.0,0.92284507]
[1725637798494,0.00082,54377.0,54376.0,0.94013811]
[1725637798725,0.368622,54377.0,54376.0,0.92284507]
[1725637798944,0.184721,54377.0,54376.0,0.92284507]
[1725637799160,0.920325,54377.0,54376.0,0.92284507]
[1725637799391,0.184721,54377.0,54376.0,0.92284507]
[1725637799872,0.00082,54377.0,54376.0,0.92284507]
[1725637800091,0.00082,54377.0,54376.0,0.92484507]
[1725637800363,0.00082,54377.0,54376.0,0.92284507]
[1725637800819,0.920325,54377.0,54376.0,0.1996]
[1725637801042,0.00082,54377.0,54373.0,0.31654507]
[1725637801294,0.00082,54377.0,54376.0,0.397809]
[1725637801519,0.00082,54377.0,54376.0,0.581713]
[1725637801743,0.00082,54377.0,54376.0,0.6660409]
[1725637801983,0.00082,54377.0,54376.0,0.2982319]
[1725637802219,0.368622,54377.0,54376.0,0.1023279]
[1725637802457,0.367809,54376.0,54370.0,0.1844]
[1725637802687,1.28745,54371.0,54370.0,0.1844]
[1725637802931,0.551805,54367.0,54366.0,0.1965]
[1725637803158,0.919675,54367.0,54366.0,0.1965]
[1725637803379,0.919675,54367.0,54360.0,0.05498709]
[1725637803380,0.551865,54361.0,54360.0,0.1965]
[1725637803571,0.919775,54361.0,54360.0,0.1965]
[1725637803851,0.551916,54356.0,54355.0,0.01729664]
[1725637804117,0.64443059,54356.0,54355.0,0.01729664]
[1725637804339,1.59964659,54356.0,54355.0,0.01729664]
[1725637804589,0.82840259,54356.0,54355.0,0.01729664]
[1725637805308,0.46045859,54356.0,54355.0,0.01729664]
[1725637805740,0.82840259,54356.0,54355.0,0.01729664]
[1725637806235,0.85723173,54356.0,54355.0,0.01729664]
[1725637806453,0.85723173,54356.0,54355.0,0.04029664]
[1725637807114,0.48928773,54356.0,54355.0,0.04029664]
[1725637807363,0.85723173,54356.0,54355.0,0.04029664]
[1725637807586,2.29269114,54356.0,54355.0,0.01729664]
[1725637807814,2.29269114,54356.0,54351.0,0.001632]
[1725637807815,1.287898,54352.0,54351.0,0.001632]
[1725637808277,1.387898,54352.0,54351.0,0.001632]
[1725637808744,1.755869,54352.0,54351.0,0.001632]
[1725637808988,2.145569,54352.0,54351.0,0.001632]
[1725637809657,1.89279595,54352.0,54351.0,0.001632]
[1725637809904,2.07678095,54352.0,54351.0,0.001632]
[1725637811212,2.07678095,54352.0,54339.0,0.001632]
[1725637811213,0.1946,54342.0,54339.0,0.001632]
[1725637811395,0.92013,54340.0,54339.0,0.001632]
[1725637811612,2.517486,54340.0,54339.0,0.001632]
[1725637811838,1.781382,54340.0,54339.0,0.001632]
[1725637812493,2.149434,54340.0,54339.0,0.001632]
[1725637812734,1.781382,54340.0,54339.0,0.001632]
[1725637814126,1.80713409,54340.0,54339.0,0.001632]
[1725637814371,2.17518609,54340.0,54339.0,0.001632]
[1725637814597,2.2307753,54340.0,54339.0,0.001632]
[1725637815325,2.20402916,54340.0,54339.0,0.001632]
[1725637815515,1.83597716,54340.0,54339.0,0.001632]
[1725637816212,2.20402916,54340.0,54339.0,0.001632]
[1725637817700,2.20402916,54340.0,54327.0,0.073805]
[1725637817701,1.288469,54328.0,54327.0,0.073805]
[1725637817946,1.870469,54328.0,54327.0,0.073805]
[1725637818184,2.73348331,54328.0,54327.0,0.073805]
[1725637818428,1.288609,54322.0,54321.0,6.12324681]
[1725637818646,1.756783,54322.0,54321.0,6.12324681]
[1725637818895,2.124957,54322.0,54321.0,6.12324681]
[1725637819124,2.538557,54322.0,54321.0,6.12324681]
[1725637819559,2.170383,54322.0,54321.0,6.12324681]
[1725637819991,2.56740797,54322.0,54321.0,6.12324681]
[1725637820743,3.12247739,54322.0,54321.0,6.12324681]
[1725637821218,3.29803765,54322.0,54321.0,5.94750867]
[1725637821457,3.29803765,54322.0,54321.0,5.88843483]
[1725637821695,3.29803765,54322.0,54321.0,5.42679873]
[1725637821935,3.29803765,54322.0,54321.0,5.35316273]
[1725637822176,4.24047465,54322.0,54321.0,5.24270873]
[1725637822394,4.24047465,54322.0,54321.0,4.72024056]
[1725637822616,4.06467465,54322.0,54321.0,3.7683598]
[1725637822838,4.07467465,54322.0,54321.0,2.79832193]
[1725637823061,4.07467465,54322.0,54321.0,2.38172193]
[1725637823312,8.71107465,54322.0,54321.0,1.84802193]
[1725637823563,7.97207465,54322.0,54321.0,1.84802193]
[1725637823809,7.97207465,54322.0,54321.0,1.66393193]
[1725637823810,3.67793442,54322.0,54321.0,1.66393193]
[1725637824083,3.49237416,54322.0,54321.0,1.66393193]
[1725637825060,3.49237416,54322.0,54321.0,1.51665993]
[1725637825061,3.49437416,54322.0,54321.0,1.51665993]
[1725637825294,3.50437416,54322.0,54321.0,1.47984193]
[1725637825532,3.50437416,54322.0,54321.0,0.37188226]
[1725637825746,3.67993442,54322.0,54321.0,3.7e-07]
[1725637826197,3.68993442,54322.0,54321.0,3.7e-07]
[1725637826425,2.56193716,54322.0,54321.0,3.7e-07]
[1725637826686,1.68564277,54322.0,54321.0,3.7e-07]
[1725637827795,1.68564277,54322.0,54321.0,0.39190037]
[1725637828045,1.68564277,54322.0,54321.0,0.57380037]
[1725637828742,1.68564277,54322.0,54321.0,3.7e-07]
[1725637828961,1.88095358,54322.0,54321.0,3.7e-07]
[1725637829152,2.0805633,54322.0,54321.0,3.7e-07]
[1725637829639,1.78564277,54322.0,54321.0,3.7e-07]
[1725637830100,1.756783,54322.0,54321.0,3.7e-07]
[1725637830365,2.124957,54322.0,54321.0,3.7e-07]
[1725637831143,1.756783,54322.0,54321.0,3.7e-07]
[1725637831882,2.70397182,54322.0,54321.0,3.7e-07]
[1725637832106,2.71815253,54322.0,54321.0,3.7e-07]
[1725637832345,2.16441827,54322.0,54321.0,3.7e-07]
[1725637832577,2.53259227,54322.0,54321.0,3.7e-07]
[1725637833020,2.16441827,54322.0,54321.0,3.7e-07]
[1725637833247,2.561448,54322.0,54321.0,3.7e-07]
[1725637833472,2.56032024,54322.0,54321.0,3.7e-07]
[1725637834175,1.40019591,54322.0,54321.0,3.7e-07]
[1725637834652,1.39488399,54322.0,54321.0,3.7e-07]
[1725637836067,1.02670999,54322.0,54321.0,3.7e-07]
[1725637836317,0.65853599,54322.0,54321.0,3.7e-07]
[1725637836533,0.29036199,54322.0,54321.0,3.7e-07]
[1725637837029,0.29148975,54322.0,54321.0,0.38570037]
[1725637837248,0.68851418,54322.0,54321.0,0.40870037]
[1725637837465,1.42486218,54322.0,54321.0,0.38570037]
[1725637837686,1.45160881,54322.0,54321.0,0.38570037]
[1725637838867,1.05668818,54322.0,54321.0,0.38570037]
[1725637839094,0.68851418,54322.0,54321.0,0.38570037]
[1725637839347,0.32034018,54322.0,54321.0,0.38570037]
[1725637839561,0.03625318,54322.0,54321.0,0.60540037]
[1725637840037,0.22034018,54322.0,54321.0,0.60540037]
[1725637840282,0.00740275,54322.0,54321.0,0.60540037]
[1725637840497,0.19148975,54322.0,54321.0,0.60540037]
[1725637840974,0.19148975,54322.0,54321.0,0.38570037]
[1725637840975,0.93150339,54322.0,54321.0,0.38570037]
[1725637841193,1.29967739,54322.0,54321.0,0.38570037]
[1725637841412,1.70996673,54322.0,54321.0,3.7e-07]
[1725637841685,2.4966858,54322.0,54321.0,3.7e-07]
[1725637842118,2.4946858,54322.0,54321.0,3.7e-07]
[1725637842359,2.08439646,54322.0,54321.0,3.7e-07]
[1725637842602,1.39967739,54322.0,54321.0,3.7e-07]
[1725637842821,0.19148975,54322.0,54321.0,3.7e-07]
[1725637843042,0.00740275,54322.0,54321.0,3.7e-07]
[1725637843288,0.00740275,54322.0,54321.0,0.40790037]
[1725637843556,0.368158,54325.0,54321.0,0.43090037]
[1725637843804,0.55936107,54322.0,54321.0,0.43090037]
[1725637844042,1.288609,54322.0,54321.0,0.43090037]
[1725637844279,0.92676316,54322.0,54321.0,0.43090037]
[1725637844521,0.00632816,54322.0,54321.0,0.43090037]
[1725637845035,0.000816,54340.0,54321.0,0.43090037]
[1725637845036,0.31654507,54333.0,54321.0,0.43090037]
[1725637845294,1.31535574,54322.0,54321.0,0.40790037]
[1725637845540,1.31535574,54322.0,54321.0,3.7e-07]
[1725637845541,1.36030877,54322.0,54321.0,3.7e-07]
[1725637845755,1.91042043,54322.0,54321.0,3.7e-07]
[1725637846014,2.27832622,54322.0,54321.0,3.7e-07]
[1725637846245,2.20276596,54322.0,54321.0,3.7e-07]
[1725637846905,2.57093996,54322.0,54321.0,3.7e-07]
[1725637847138,2.20276596,54322.0,54321.0,3.7e-07]
[1725637847828,2.59093996,54322.0,54321.0,3.7e-07]
[1725637848060,2.39832622,54322.0,54321.0,3.7e-07]
[1725637848291,2.40032622,54322.0,54321.0,3.7e-07]
[1725637848571,2.21276596,54322.0,54321.0,3.7e-07]
[1725637848809,2.24162393,54322.0,54321.0,0.21318237]
[1725637849031,2.558169,54322.0,54321.0,0.17636437]
[1725637849262,2.558985,54322.0,54321.0,0.17636437]
[1725637849769,2.55876343,54322.0,54321.0,0.17636437]
[1725637850020,3.10249769,54322.0,54321.0,0.17636437]
[1725637850262,3.10249769,54322.0,54321.0,3.7e-07]
[1725637850492,3.11449769,54322.0,54321.0,3.7e-07]
[1725637850722,3.11449769,54322.0,54313.0,8.7e-07]
[1725637850723,2.413488,54314.0,54313.0,8.7e-07]
[1725637850949,2.73003307,54314.0,54313.0,8.7e-07]
[1725637851205,3.01262656,54314.0,54313.0,8.7e-07]
[1725637851428,3.04148762,54314.0,54313.0,8.7e-07]
[1725637851646,3.05148762,54314.0,54313.0,8.7e-07]
[1725637852369,2.86592736,54314.0,54313.0,8.7e-07]
[1725637852591,2.50052123,54314.0,54313.0,8.7e-07]
[1725637852827,2.13229223,54314.0,54313.0,8.7e-07]
[1725637854060,2.8170663,54314.0,54313.0,8.7e-07]
[1725637854549,2.50052123,54314.0,54313.0,8.7e-07]
[1725637854769,2.67608149,54314.0,54313.0,8.7e-07]
[1725637855241,2.50052123,54314.0,54313.0,8.7e-07]
[1725637855471,2.52938217,54314.0,54313.0,8.7e-07]
[1725637855914,2.55612916,54314.0,54313.0,8.7e-07]
[1725637856647,2.55612916,54314.0,54307.0,8.7e-07]
[1725637856648,0.17264116,54314.0,54307.0,8.7e-07]
[1725637856900,2.71029307,54308.0,54307.0,8.7e-07]
[1725637857143,2.81029307,54308.0,54307.0,8.7e-07]
[1725637857365,2.81653706,54308.0,54307.0,8.7e-07]
[1725637857588,2.81853706,54308.0,54307.0,8.7e-07]
[1725637857811,2.84540129,54308.0,54307.0,8.7e-07]
[1725637858026,2.93736855,54308.0,54307.0,8.7e-07]
[1725637858707,2.71060507,54301.0,54300.0,8.7e-07]
[1725637858979,2.81060507,54301.0,54300.0,8.7e-07]
[1725637859201,1.23740507,54297.0,54296.0,8.7e-07]
[1725637859449,1.60574907,54297.0,54296.0,8.7e-07]
[1725637859718,3.18748113,54297.0,54296.0,8.7e-07]
[1725637859949,3.92416913,54297.0,54296.0,8.7e-07]
[1725637860190,3.94616913,54297.0,54296.0,8.7e-07]
[1725637860425,3.4320638,54297.0,54296.0,8.7e-07]
[1725637860642,2.1328588,54297.0,54296.0,8.7e-07]
[1725637861106,2.15960586,54297.0,54296.0,8.7e-07]
[1725637861382,2.52794986,54297.0,54296.0,8.7e-07]
[1725637861843,2.52794986,54297.0,54284.0,1e-06]
[1725637861844,0.01,54290.0,54284.0,1e-06]
[1725637862084,1.289487,54285.0,54284.0,1e-06]
[1725637862342,3.29394607,54285.0,54284.0,1e-06]
[1725637862614,3.7393092,54285.0,54284.0,1e-06]
[1725637862842,3.42276413,54285.0,54284.0,1e-06]
[1725637863315,2.50170013,54285.0,54284.0,1e-06]
[1725637863552,2.8182452,54285.0,54284.0,1e-06]
[1725637864475,2.50170013,54285.0,54284.0,1e-06]
[1725637864698,2.40170013,54285.0,54284.0,0.199101]
[1725637864916,2.40170013,54285.0,54284.0,0.612301]
[1725637865152,2.03327513,54285.0,54284.0,0.612301]
[1725637865377,1.66485013,54285.0,54284.0,0.612301]
[1725637866062,2.40170013,54285.0,54284.0,0.612301]
[1725637866325,2.40170013,54285.0,54266.0,0.00164]
[1725637866326,0.17342314,54285.0,54272.0,0.19223]
[1725637866585,1.658281,54273.0,54272.0,0.19223]
[1725637866845,2.03368376,54273.0,54272.0,0.19223]
[1725637867088,2.13368376,54273.0,54272.0,0.00013]
[1725637867355,2.50219076,54273.0,54272.0,1e-06]
[1725637867588,2.52893795,54273.0,54272.0,1e-06]
[1725637867832,2.52893795,54273.0,54259.0,0.1836]
[1725637867833,2.027272,54260.0,54259.0,0.1836]
[1725637868068,2.127272,54260.0,54259.0,0.1836]
[1725637868289,1.76557845,54260.0,54259.0,0.1836]
[1725637869217,1.79446304,54260.0,54259.0,0.1836]
[1725637869467,1.79446304,54260.0,54259.0,0.5642]
[1725637869959,2.3386183,54260.0,54259.0,0.5642]
[1725637870189,2.30973371,54260.0,54259.0,0.3806]
[1725637870476,2.30973371,54260.0,54258.0,5e-07]
[1725637870477,1.658709,54259.0,54258.0,5e-07]
[1725637870697,1.758709,54259.0,54258.0,0.3843005]
[1725637870931,1.76557598,54259.0,54258.0,0.3843005]
[1725637871166,0.92837198,54259.0,54258.0,0.3843005]
[1725637871406,0.92837198,54259.0,54258.0,0.5799005]
[1725637871647,1.29697398,54259.0,54258.0,0.5799005]
[1725637871890,1.29697398,54259.0,54258.0,0.6029005]
[1725637872614,1.76557598,54259.0,54258.0,0.5799005]
[1725637873145,1.79232707,54259.0,54258.0,0.5799005]
[1725637873387,1.79571613,54259.0,54258.0,0.5799005]
[1725637873879,1.76896504,54259.0,54258.0,0.5799005]
[1725637874412,1.79571613,54259.0,54258.0,5e-07]
[1725637874648,1.79571613,54259.0,54258.0,0.4076005]
[1725637874881,2.16431813,54259.0,54258.0,0.4076005]
[1725637875113,2.16446445,54259.0,54258.0,0.4076005]
[1725637875818,1.76896504,54259.0,54258.0,0.4076005]
[1725637876300,2.16446445,54259.0,54258.0,0.4076005]
[1725637876532,2.16446445,54259.0,54258.0,5e-07]
[1725637876533,3.77111752,54259.0,54258.0,5e-07]
[1725637876782,3.45457245,54259.0,54258.0,5e-07]
[1725637877022,3.26153071,54259.0,54258.0,5e-07]
[1725637877257,3.63213271,54259.0,54258.0,5e-07]
[1725637877493,3.63213271,54259.0,54252.0,5e-07]
[1725637877494,2.34408107,54253.0,54252.0,5e-07]
[1725637877714,2.44408107,54253.0,54252.0,5e-07]
[1725637877952,3.0279308,54253.0,54252.0,5e-07]
[1725637878197,2.53582547,54253.0,54252.0,5e-07]
[1725637878909,2.56471857,54253.0,54252.0,5e-07]
[1725637880293,3.48832657,54253.0,54252.0,5e-07]
[1725637880824,3.48632657,54253.0,54252.0,5e-07]
[1725637881085,2.53420586,54253.0,54252.0,0.3940005]
[1725637881340,2.03666976,54253.0,54252.0,0.5795005]
[1725637881588,2.06363667,54253.0,54252.0,0.5795005]
[1725637882101,2.06363667,54253.0,54252.0,0.5745005]
[1725637882328,2.23919693,54253.0,54252.0,0.5745005]
[1725637882571,2.23919693,54253.0,54246.0,0.1912]
[1725637882572,0.553024,54247.0,54246.0,0.1912]
[1725637882813,1.659073,54247.0,54246.0,0.1912]
[1725637883034,2.16384032,54247.0,54246.0,0.1912]
[1725637883503,2.027943,54242.0,54241.0,0.00164]
[1725637883753,2.027943,54242.0,54241.0,1e-06]
[1725637883754,2.34448807,54242.0,54241.0,1e-06]
[1725637883990,3.02482202,54242.0,54241.0,1e-06]
[1725637884218,3.94861602,54242.0,54241.0,1e-06]
[1725637884452,3.94861602,54242.0,54229.0,0.00162]
[1725637884453,0.553198,54230.0,54229.0,0.00162]
[1725637884673,1.759595,54230.0,54229.0,0.00162]
[1725637884895,2.13743127,54230.0,54229.0,0.00162]
[1725637885141,2.53322807,54230.0,54229.0,0.00162]
[1725637885356,2.53322807,54230.0,54220.0,0.00463]
[1725637885357,1.65987,54221.0,54220.0,0.00463]
[1725637885591,1.65987,54221.0,54220.0,0.41923]
[1725637885592,2.12873,54221.0,54220.0,0.41923]
[1725637885856,2.13770577,54221.0,54220.0,0.41923]
[1725637886794,1.39998577,54221.0,54220.0,0.41923]
[1725637887277,1.79584357,54221.0,54220.0,0.41923]
[1725637887960,2.16470357,54221.0,54220.0,0.41923]
[1725637888431,2.31911032,54221.0,54220.0,0.00463]
[1725637889100,2.16470357,54221.0,54220.0,0.00463]
[1725637890945,2.16470357,54221.0,54218.0,8e-07]
[1725637890946,2.028807,54219.0,54218.0,8e-07]
[1725637891413,2.16474332,54219.0,54218.0,8e-07]
[1725637891636,2.53361732,54219.0,54218.0,8e-07]
[1725637891863,2.16474332,54219.0,54218.0,8e-07]
[1725637892092,2.16474332,54219.0,54218.0,0.5983008]
[1725637892327,1.66885684,54219.0,54218.0,0.5983008]
[1725637892775,1.69586932,54219.0,54218.0,0.5983008]
[1725637893232,2.18446959,54219.0,54218.0,0.3987008]
[1725637893473,2.06474332,54219.0,54218.0,0.3987008]
[1725637893711,2.16474332,54219.0,54218.0,0.3987008]
[1725637893926,2.16474332,54219.0,54218.0,8e-07]
[1725637893927,2.5905061,54219.0,54218.0,8e-07]
[1725637894160,2.70917758,54219.0,54218.0,8e-07]
[1725637894410,2.19365061,54219.0,54218.0,8e-07]
[1725637894646,2.56252461,54219.0,54218.0,8e-07]
[1725637894857,2.19365061,54219.0,54218.0,8e-07]
[1725637896738,2.56252461,54219.0,54218.0,8e-07]
[1725637896967,2.19365061,54219.0,54218.0,0.3872008]
[1725637897460,2.19365061,54219.0,54218.0,0.3888348]
[1725637897692,2.19446761,54219.0,54218.0,0.5760348]
[1725637900294,2.19446761,54219.0,54218.0,0.3888348]
[1725637900528,2.16556032,54219.0,54218.0,0.3888348]
[1725637901228,1.79668632,54219.0,54218.0,0.3888348]
[1725637901484,1.30079984,54219.0,54218.0,0.5920348]
[1725637901707,0.93192584,54219.0,54218.0,0.5920348]
[1725637901925,0.73192584,54219.0,54218.0,0.5940348]
[1725637902151,0.91636284,54219.0,54218.0,0.5920348]
[1725637902379,2.02298484,54219.0,54218.0,0.5690348]
[1725637902619,2.02298484,54219.0,54218.0,0.3888348]
[1725637902620,2.05000638,54219.0,54218.0,0.3888348]
[1725637902857,2.22556664,54219.0,54218.0,0.0016348]
[1725637903097,2.05000638,54219.0,54218.0,0.0016348]
[1725637903328,2.15000638,54219.0,54218.0,0.0016348]
[1725637904000,1.78113238,54219.0,54218.0,0.0016348]
[1725637904221,1.78113238,54219.0,54218.0,0.4032348]
[1725637904222,1.75411084,54219.0,54218.0,0.4032348]
[1725637905610,1.69611084,54219.0,54218.0,0.4032348]
[1725637906322,2.09200904,54219.0,54218.0,0.4032348]
[1725637906975,2.09200904,54219.0,54218.0,0.0016348]
[1725637909234,2.46088304,54219.0,54218.0,0.0016348]
[1725637909477,2.46088304,54219.0,54218.0,8e-07]
[1725637910722,2.16557204,54219.0,54218.0,8e-07]
[1725637910922,2.16557204,54219.0,54200.0,4e-05]
[1725637910923,0.2999,54218.0,54201.0,0.1979]
[1725637911123,0.922422,54205.0,54201.0,0.1979]
[1725637911558,2.13997061,54205.0,54201.0,0.1979]
[1725637911782,2.50893961,54205.0,54201.0,0.1979]
[1725637912199,2.50893961,54205.0,54200.0,4e-05]
[1725637912424,2.50893961,54205.0,54198.0,5e-07]
[1725637912425,0.184505,54199.0,54198.0,5e-07]
[1725637912642,2.14009536,54199.0,54198.0,5e-07]
[1725637912871,2.50910536,54199.0,54198.0,5e-07]
[1725637913544,2.53613083,54199.0,54198.0,5e-07]
[1725637914265,2.56505256,54199.0,54198.0,5e-07]
[1725637914487,1.660851,54189.0,54185.0,0.1905]
[1725637914705,1.68787647,54189.0,54185.0,0.1905]
[1725637914933,1.76959623,54189.0,54185.0,0.1905]
[1725637915149,2.13867423,54189.0,54185.0,0.1905]
[1725637915382,2.1627003,54189.0,54185.0,0.1905]
[1725637915600,2.19162343,54189.0,54185.0,0.1905]
[1725637915813,2.56070143,54189.0,54185.0,0.1905]
[1725637916725,1.79551936,54189.0,54186.0,0.31654507]
[1725637917161,1.79551936,54189.0,54185.0,0.1905]
[1725637917375,2.16459736,54189.0,54185.0,0.1905]
[1725637917575,1.79551936,54189.0,54188.0,0.3906]
[1725637918011,2.16459736,54189.0,54188.0,0.3906]
[1725637919968,1.90245314,54189.0,54188.0,0.3906]
[1725637920185,2.08699214,54189.0,54188.0,0.3906]
[1725637920397,2.08699214,54189.0,54185.0,0.1905]
[1725637920398,2.030044,54186.0,54185.0,0.388]
[1725637920600,0.553699,54181.0,54180.0,0.1932]
[1725637920825,0.553699,54181.0,54174.0,0.00164]
[1725637920826,0.922932,54175.0,54174.0,0.00164]
[1725637921032,2.130451,54175.0,54174.0,0.00164]
[1725637921257,2.130451,54175.0,54163.0,0.449525]
[1725637921258,1.292368,54164.0,54163.0,0.449525]
[1725637921486,1.292368,54164.0,54163.0,0.3755]
[1725637921487,1.66064312,54164.0,54163.0,0.3755]
[1725637921714,1.66064312,54164.0,54163.0,0.5617]
[1725637921715,1.30182252,54164.0,54163.0,0.5617]
[1725637921939,1.30182252,54164.0,54163.0,0.5597]
[1725637922183,0.93257452,54164.0,54163.0,0.5617]
[1725637922393,0.93257452,54164.0,54163.0,0.89824507]
[1725637922614,1.30182252,54164.0,54163.0,0.89624507]
[1725637922828,1.30182252,54164.0,54163.0,0.89824507]
[1725637923286,0.93257452,54164.0,54163.0,0.89824507]
[1725637923497,0.93257452,54164.0,54163.0,0.91924507]
[1725637923725,1.30182252,54164.0,54163.0,0.91924507]
[1725637923945,1.30182252,54164.0,54163.0,0.92124507]
[1725637924147,0.93257452,54164.0,54163.0,0.92124507]
[1725637924383,0.93257452,54164.0,54163.0,0.91924507]
[1725637924634,0.93257452,54164.0,54163.0,0.87764507]
[1725637924873,1.29139512,54164.0,54163.0,0.5611]
[1725637925097,1.29139512,54164.0,54163.0,0.87764507]
[1725637925098,1.30181638,54164.0,54163.0,0.87764507]
[1725637925304,1.33074784,54164.0,54163.0,0.87764507]
[1725637925528,1.69999584,54164.0,54163.0,0.5611]
[1725637925760,1.33074784,54164.0,54163.0,0.5611]
[1725637925979,1.33074784,54164.0,54163.0,0.5841]
[1725637926422,1.33074784,54164.0,54163.0,0.5611]
[1725637926423,1.69999584,54164.0,54163.0,0.5611]
[1725637926664,1.69999584,54164.0,54163.0,0.5561]
[1725637926665,1.77106438,54164.0,54163.0,0.5561]
[1725637926884,2.14031238,54164.0,54163.0,0.5561]
[1725637927319,2.14031238,54164.0,54162.0,0.00018615]
[1725637927320,1.292392,54163.0,54162.0,0.00018615]
[1725637927573,1.761647,54163.0,54162.0,0.00018615]
[1725637927814,1.77202829,54163.0,54162.0,0.00018615]
[1725637928872,1.67202829,54163.0,54162.0,0.19978615]
[1725637929074,1.67202829,54163.0,54162.0,0.00018615]
[1725637929732,1.67202829,54163.0,54162.0,0.39338615]
[1725637930152,2.14128329,54163.0,54162.0,0.39338615]
[1725637930373,2.51053829,54163.0,54162.0,0.00018615]
[1725637930576,2.14128329,54163.0,54162.0,0.00018615]
[1725637931240,1.77202829,54163.0,54162.0,0.00018615]
[1725637931551,1.77202829,54163.0,54162.0,0.40688615]
[1725637932420,2.14128329,54163.0,54162.0,0.40688615]
[1725637932654,0.93351829,54163.0,54162.0,0.91873122]
[1725637932862,0.938461,54163.0,54162.0,0.96373122]
[1725637933294,1.307716,54163.0,54162.0,0.94173122]
[1725637933516,1.307716,54163.0,54162.0,0.60218615]
[1725637933744,1.307716,54163.0,54162.0,0.62182015]
[1725637934421,1.307716,54163.0,54162.0,0.62382015]
[1725637934422,0.938461,54163.0,54162.0,0.62382015]
[1725637934646,0.938461,54163.0,54162.0,0.65382015]
[1725637934854,1.307716,54163.0,54162.0,0.64382015]
[1725637935089,0.569206,54163.0,54162.0,0.65382015]
[1725637935305,0.00494271,54163.0,54162.0,0.65382015]
[1725637935522,0.553812,54170.0,54169.0,0.03]
[1725637935744,0.55430836,54184.0,54176.0,0.002]
[1725637935954,1.47708836,54184.0,54183.0,0.49884507]
[1725637936202,0.184556,54184.0,54183.0,0.49884507]
[1725637936446,0.184549,54186.0,54185.0,0.01]
[1725637936669,0.553648,54186.0,54185.0,0.70534507]
[1725637936891,0.922747,54186.0,54185.0,0.4018]